bitfinex-derivatives/quotes_BTCF0:USTF0_20241117
["timestamp","ask_amount","ask_price","bid_price","bid_amount"]
[1731819073411,0.055224,90517.0,90504.0,0.055231]
[1731819073708,0.3608,90513.0,90504.0,0.055231]
[1731819074017,0.3608,90513.0,90505.0,0.055231]
[1731819074914,0.3608,90513.0,90506.0,0.05523]
[1731819077016,0.3608,90513.0,90501.0,0.04439259]
[1731819077216,0.3608,90513.0,90511.0,0.055227]
[1731819077423,0.0313,90518.0,90516.0,0.055225]
[1731819078128,0.0313,90518.0,90510.0,0.1206]
[1731819078337,0.16366401,90518.0,90516.0,0.055224]
[1731819078633,0.31553627,90528.0,90510.0,0.1206]
[1731819078634,0.13220879,90528.0,90511.0,0.11047648]
[1731819078934,0.13220879,90528.0,90512.0,0.055227]
[1731819079222,0.00012417,90530.0,90511.0,0.0249]
[1731819079223,0.00012417,90530.0,90528.0,0.055217]
[1731819080435,0.00012417,90530.0,90525.0,0.12056]
[1731819080436,0.055218,90528.0,90525.0,0.12056]
[1731819080617,0.00012417,90530.0,90528.0,0.055217]
[1731819081338,0.00012417,90530.0,90529.0,0.3919]
[1731819081625,0.00012417,90530.0,90529.0,0.50236184]
[1731819081845,0.13730879,90548.0,90529.0,0.50236184]
[1731819081846,0.0302,90547.0,90546.0,0.055206]
[1731819082014,0.0302,90547.0,90546.0,0.416006]
[1731819083328,0.0302,90547.0,90546.0,0.055206]
[1731819085128,9.511e-05,90557.0,90555.0,0.055201]
[1731819086119,9.511e-05,90557.0,90546.0,0.055206]
[1731819086320,0.055207,90546.0,90539.0,0.05521]
[1731819087421,0.3608,90553.0,90529.0,0.3919]
[1731819087422,0.055215,90531.0,90529.0,0.3608]
[1731819087664,0.18188311,90530.0,90513.0,0.0051]
[1731819087937,0.055217,90529.0,90511.0,0.3608]
[1731819088129,0.0316,90530.0,90527.0,0.055217]
[1731819088335,0.0316,90530.0,90519.0,0.055223]
[1731819088719,0.3608,90525.0,90509.0,0.04366734]
[1731819088926,0.3608,90525.0,90508.0,0.0319]
[1731819089231,0.3608,90525.0,90516.0,0.055224]
[1731819090426,0.3608,90525.0,90508.0,0.0319]
[1731819090627,0.3608,90525.0,90510.0,0.51108311]
[1731819090833,0.3608,90525.0,90523.0,0.05522]
[1731819091437,0.055209,90541.0,90532.0,0.055214]
[1731819091636,0.055209,90541.0,90520.0,0.3608]
[1731819091834,0.0313,90542.0,90521.0,0.0641]
[1731819092224,0.0313,90542.0,90523.0,0.05522]
[1731819092533,0.0313,90542.0,90531.0,0.055215]
[1731819092534,0.05521,90540.0,90531.0,0.055215]
[1731819092739,0.3921,90542.0,90531.0,0.055215]
[1731819092930,0.3921,90542.0,90521.0,0.0641]
[1731819093130,0.3921,90542.0,90537.0,0.055212]
[1731819094435,0.3921,90542.0,90522.0,0.0051]
[1731819094436,0.3921,90542.0,90524.0,0.05522]
[1731819094639,0.3921,90542.0,90540.0,0.05521]
[1731819095339,0.3921,90542.0,90524.0,0.0051]
[1731819095532,0.3921,90542.0,90521.0,0.0641]
[1731819095729,0.3921,90542.0,90533.0,0.055214]
[1731819095932,0.3608,90534.0,90516.0,0.2570903]
[1731819096134,0.15028311,90522.0,90516.0,0.055224]
[1731819096443,0.15028311,90522.0,90505.0,0.26235507]
[1731819096940,0.3608,90523.0,90516.0,0.055224]
[1731819097131,0.3608,90523.0,90517.0,0.055223]
[1731819097332,0.3608,90523.0,90522.0,0.055221]
[1731819097533,0.032,90532.0,90512.0,0.055227]
[1731819097738,0.032,90532.0,90528.0,0.055217]
[1731819098332,0.032,90532.0,90513.0,0.0051]
[1731819098333,0.055216,90531.0,90523.0,0.05522]
[1731819098543,0.055216,90531.0,90524.0,0.055219]
[1731819098853,0.032,90532.0,90527.0,0.055218]
[1731819099135,0.0319,90533.0,90532.0,0.055215]
[1731819099642,0.3608,90534.0,90532.0,0.055215]
[1731819100741,0.3608,90542.0,90541.0,0.055209]
[1731819101445,0.13220879,90549.0,90539.0,0.3608]
[1731819101642,0.13220879,90552.0,90550.0,0.055204]
[1731819101833,0.36152,90554.0,90552.0,0.055203]
[1731819101834,0.3608,90554.0,90552.0,0.055203]
[1731819102539,0.416002,90554.0,90552.0,0.055203]
[1731819103444,0.3608,90554.0,90552.0,0.055203]
[1731819105542,0.3608,90554.0,90539.0,0.47536]
[1731819105757,0.15028311,90545.0,90539.0,0.3608]
[1731819106243,0.15028311,90545.0,90543.0,0.055208]
[1731819106443,0.15028311,90545.0,90539.0,0.41601]
[1731819106638,0.15028311,90545.0,90541.0,0.055209]
[1731819106840,0.15028311,90545.0,90543.0,0.055208]
[1731819107040,0.13197929,90549.0,90543.0,0.055208]
[1731819107350,0.0301,90551.0,90531.0,0.11456]
[1731819107351,0.15028311,90545.0,90531.0,0.11456]
[1731819107548,0.13197929,90544.0,90533.0,0.055214]
[1731819107736,0.3608,90538.0,90533.0,0.055214]
[1731819108136,0.3608,90538.0,90524.0,0.11456]
[1731819108137,0.15028311,90536.0,90524.0,0.11456]
[1731819108339,0.15028311,90536.0,90524.0,0.055219]
[1731819108340,0.3608,90530.0,90524.0,0.055219]
[1731819108538,0.0327,90529.0,90524.0,0.055219]
[1731819109251,0.0327,90529.0,90515.0,0.11456]
[1731819109549,0.0327,90529.0,90527.0,0.055218]
[1731819111246,0.0327,90529.0,90527.0,0.047218]
[1731819111856,0.3608,90538.0,90537.0,0.055212]
[1731819113850,0.13197929,90544.0,90543.0,0.055208]
[1731819114152,0.39336,90549.0,90547.0,0.055206]
[1731819114153,0.13197929,90548.0,90547.0,0.055206]
[1731819114343,0.03256,90549.0,90547.0,0.055206]
[1731819114545,0.0318,90549.0,90547.0,0.055206]
[1731819115542,0.36152,90553.0,90537.0,0.055212]
[1731819115543,0.3608,90553.0,90552.0,0.055203]
[1731819117455,9.511e-05,90557.0,90552.0,0.055203]
[1731819117663,9.511e-05,90557.0,90556.0,0.0552]
[1731819118660,1.1e-07,90557.0,90556.0,0.52465326]
[1731819119659,1.1e-07,90557.0,90556.0,0.67493637]
[1731819120248,1e-08,90560.0,90556.0,0.95101637]
[1731819120451,0.0051,90577.0,90576.0,0.055188]
[1731819120653,0.16477929,90582.0,90580.0,0.055186]
[1731819120852,0.0328,90582.0,90580.0,0.055186]
[1731819121253,8.353e-05,90581.0,90580.0,0.055186]
[1731819123862,8.353e-05,90581.0,90580.0,0.16558503]
[1731819124254,0.3608,90596.0,90595.0,0.055176]
[1731819127062,0.3608,90596.0,90582.0,0.15028311]
[1731819127370,0.3608,90596.0,90581.0,0.10852]
[1731819127663,0.3608,90596.0,90595.0,0.055176]
[1731819128049,0.3608,90596.0,90595.0,0.20545911]
[1731819128448,0.10010559,90600.0,90595.0,0.20545911]
[1731819128449,0.10010559,90600.0,90595.0,0.15028311]
[1731819128672,0.10010559,90600.0,90599.0,0.055174]
[1731819130067,0.10010559,90600.0,90580.0,0.15538311]
[1731819130257,0.10010559,90600.0,90569.0,0.3608]
[1731819130258,0.3608,90592.0,90590.0,0.055179]
[1731819130460,0.055175,90598.0,90591.0,0.055178]
[1731819130764,0.055175,90598.0,90592.0,0.055178]
[1731819130972,0.10010559,90600.0,90594.0,0.055177]
[1731819131560,0.15527959,90600.0,90594.0,0.055177]
[1731819132466,0.15527959,90600.0,90582.0,0.0051]
[1731819132669,0.3608,90593.0,90591.0,0.055178]
[1731819133464,0.10010559,90600.0,90591.0,0.163698]
[1731819133757,0.10010559,90600.0,90599.0,0.055174]
[1731819136472,0.055174,90599.0,90591.0,0.055178]
[1731819136671,0.055174,90599.0,90584.0,0.0051]
[1731819136672,0.055174,90599.0,90592.0,0.055178]
[1731819137469,0.055174,90599.0,90593.0,0.055177]
[1731819138571,0.10010559,90600.0,90577.0,0.3659]
[1731819138759,0.3608,90594.0,90593.0,0.055178]
[1731819140970,0.3608,90594.0,90593.0,0.047178]
[1731819141979,0.3608,90594.0,90583.0,0.3608]
[1731819142177,0.3608,90594.0,90583.0,0.055184]
[1731819142367,0.055181,90588.0,90583.0,0.055184]
[1731819142871,0.117178,90593.0,90583.0,0.055183]
[1731819143075,0.117178,90593.0,90584.0,0.055183]
[1731819143770,0.3608,90585.0,90584.0,0.055183]
[1731819144773,0.3608,90585.0,90575.0,0.15028311]
[1731819145071,0.3608,90585.0,90557.0,0.0658]
[1731819145072,0.3608,90576.0,90565.0,0.0051]
[1731819145276,0.3608,90576.0,90574.0,0.055189]
[1731819145663,0.49277929,90576.0,90574.0,0.055189]
[1731819146067,0.13197929,90575.0,90574.0,0.055189]
[1731819146270,0.13197929,90579.0,90574.0,0.386389]
[1731819146575,0.13197929,90589.0,90578.0,0.51108311]
[1731819146780,0.13197929,90590.0,90588.0,0.055181]
[1731819146976,0.13197929,90589.0,90579.0,0.055186]
[1731819147281,0.13205554,90587.0,90578.0,0.15028311]
[1731819147483,0.13205554,90586.0,90578.0,0.15028311]
[1731819147689,0.13205554,90588.0,90578.0,0.15028311]
[1731819147887,0.13205554,90589.0,90587.0,0.055181]
[1731819148181,0.0323,90591.0,90589.0,0.05518]
[1731819148182,0.19755316,90591.0,90589.0,0.05518]
[1731819148574,0.0323,90591.0,90589.0,0.05518]
[1731819151076,0.0323,90591.0,90575.0,0.0051]
[1731819151275,0.0323,90591.0,90573.0,0.10656]
[1731819151276,0.1322475,90581.0,90573.0,0.10656]
[1731819151473,0.1322475,90579.0,90574.0,0.055189]
[1731819151784,0.1322475,90579.0,90578.0,0.055187]
[1731819151980,0.1322475,90580.0,90578.0,0.055187]
[1731819152179,0.3608,90583.0,90578.0,0.055187]
[1731819152180,0.1322475,90579.0,90578.0,0.055187]
[1731819152386,0.16525316,90580.0,90565.0,0.055195]
[1731819152688,0.13225326,90573.0,90571.0,0.055191]
[1731819152884,0.3608,90574.0,90571.0,0.055191]
[1731819152885,0.13225326,90574.0,90571.0,0.055191]
[1731819153091,0.13225326,90572.0,90571.0,0.055191]
[1731819153290,0.13225326,90574.0,90564.0,0.15028311]
[1731819153589,0.16525316,90579.0,90573.0,0.05519]
[1731819153977,0.22043916,90579.0,90573.0,0.05519]
[1731819154382,0.22043916,90579.0,90564.0,0.15538311]
[1731819154383,0.055189,90575.0,90564.0,0.15538311]
[1731819154587,0.13219055,90574.0,90570.0,0.055191]
[1731819154874,0.13219055,90573.0,90556.0,0.26743302]
[1731819155083,0.13219055,90565.0,90556.0,9.326e-05]
[1731819155378,0.13219055,90563.0,90556.0,9.326e-05]
[1731819155583,0.031,90564.0,90556.0,0.05529326]
[1731819155584,0.18738755,90562.0,90556.0,0.05529326]
[1731819155787,0.3608,90559.0,90556.0,9.326e-05]
[1731819155996,0.415999,90559.0,90556.0,9.326e-05]
[1731819156289,0.3608,90559.0,90556.0,9.326e-05]
[1731819156492,0.3608,90559.0,90556.0,0.05529326]
[1731819156899,0.3608,90559.0,90556.0,9.326e-05]
[1731819157193,0.3608,90559.0,90557.0,0.055199]
[1731819157694,0.031,90564.0,90556.0,9.326e-05]
[1731819157878,0.16319055,90564.0,90558.0,0.055198]
[1731819158481,0.031,90564.0,90558.0,0.055198]
[1731819160395,0.031,90564.0,90556.0,9.326e-05]
[1731819160792,0.031,90564.0,90562.0,0.055196]
[1731819161087,0.3608,90567.0,90566.0,0.055194]
[1731819161282,0.13219055,90579.0,90566.0,0.415994]
[1731819161480,0.13219055,90579.0,90563.0,0.26070591]
[1731819161481,0.0302,90583.0,90567.0,0.0319]
[1731819161688,0.0302,90583.0,90564.0,0.0302]
[1731819161689,0.3608,90580.0,90564.0,0.0302]
[1731819162187,0.3608,90580.0,90578.0,0.055186]
[1731819162780,0.3608,90580.0,90572.0,0.05519]
[1731819163096,0.3608,90580.0,90576.0,0.055188]
[1731819163291,0.3608,90580.0,90578.0,0.055187]
[1731819166495,0.3608,90588.0,90581.0,0.055185]
[1731819171089,0.3608,90588.0,90581.0,0.047185]
[1731819171884,0.15028311,90582.0,90569.0,0.26733976]
[1731819172103,0.055191,90571.0,90564.0,0.0051]
[1731819172397,0.3608,90567.0,90562.0,0.055196]
[1731819172898,0.0314,90570.0,90566.0,0.055194]
[1731819173392,0.0314,90570.0,90561.0,0.055197]
[1731819174008,0.3608,90568.0,90561.0,0.055197]
[1731819174802,0.3608,90568.0,90564.0,0.055195]
[1731819175395,0.3608,90568.0,90566.0,0.055194]
[1731819175698,0.0314,90570.0,90568.0,0.055192]
[1731819178500,0.055193,90568.0,90561.0,0.055197]
[1731819178796,0.3608,90567.0,90561.0,0.055197]
[1731819179217,0.3608,90567.0,90556.0,9.326e-05]
[1731819179497,0.3608,90557.0,90556.0,9.326e-05]
[1731819179890,0.055199,90558.0,90556.0,9.326e-05]
[1731819180202,0.3608,90559.0,90556.0,9.326e-05]
[1731819181597,0.055199,90558.0,90556.0,9.326e-05]
[1731819182103,0.0301,90557.0,90556.0,9.326e-05]
[1731819182802,0.16229055,90557.0,90556.0,9.326e-05]
[1731819183101,0.18038311,90557.0,90556.0,9.326e-05]
[1731819183312,0.67691627,90557.0,90556.0,9.326e-05]
[1731819183490,0.56536342,90557.0,90556.0,9.326e-05]
[1731819183697,0.67681259,90557.0,90556.0,9.326e-05]
[1731819183992,0.56536443,90557.0,90556.0,9.326e-05]
[1731819184193,0.51166311,90557.0,90556.0,9.326e-05]
[1731819184399,0.55480867,90557.0,90556.0,9.326e-05]
[1731819184603,0.71989821,90557.0,90556.0,9.326e-05]
[1731819184804,0.2383351,90557.0,90556.0,9.326e-05]
[1731819185002,0.07324556,90557.0,90556.0,9.326e-05]
[1731819185892,0.055199,90558.0,90556.0,9.326e-05]
[1731819186203,0.18723622,90558.0,90545.0,0.055207]
[1731819186402,0.13203722,90557.0,90546.0,0.055206]
[1731819186603,0.3608,90559.0,90542.0,0.02639999]
[1731819186604,0.49283722,90559.0,90542.0,0.02639999]
[1731819186902,0.3608,90559.0,90543.0,0.116408]
[1731819187211,0.055203,90553.0,90546.0,0.055206]
[1731819187402,0.055203,90553.0,90547.0,0.00014106]
[1731819187701,0.055203,90553.0,90547.0,0.05534606]
[1731819189197,0.49359722,90559.0,90547.0,0.00014106]
[1731819189503,0.055205,90549.0,90547.0,0.00014106]
[1731819189703,0.064,90548.0,90547.0,0.00014106]
[1731819189900,0.0952,90548.0,90547.0,0.00014106]
[1731819191900,0.0952,90548.0,90537.0,0.0051]
[1731819191901,0.055206,90547.0,90537.0,0.0051]
[1731819192105,0.055215,90532.0,90530.0,0.0051]
[1731819192300,0.055215,90531.0,90523.0,0.06032]
[1731819192512,0.055212,90537.0,90531.0,0.055215]
[1731819193010,0.3608,90538.0,90534.0,0.055213]
[1731819193598,0.3608,90538.0,90528.0,0.00013911]
[1731819193798,0.3608,90538.0,90536.0,0.055212]
[1731819199500,0.3608,90538.0,90537.0,0.0642]
[1731819202108,0.3608,90538.0,90537.0,0.0323]
[1731819204202,0.3608,90547.0,90537.0,0.0323]
[1731819204519,0.3608,90547.0,90546.0,0.055206]
[1731819206016,0.3608,90547.0,90537.0,0.0323]
[1731819206017,0.055206,90546.0,90537.0,0.0323]
[1731819206323,0.055206,90546.0,90543.0,0.055208]
[1731819207113,0.055206,90546.0,90531.0,0.0324]
[1731819207114,0.3608,90547.0,90531.0,0.0324]
[1731819207315,0.055212,90536.0,90532.0,0.055215]
[1731819207515,0.055212,90536.0,90528.0,0.00013911]
[1731819207516,0.0317,90535.0,90533.0,0.055214]
[1731819207707,0.3608,90538.0,90537.0,0.055212]
[1731819208821,0.3608,90538.0,90532.0,0.055215]
[1731819209019,0.416011,90538.0,90532.0,0.055215]
[1731819209223,0.416011,90538.0,90528.0,0.044543]
[1731819209224,0.416011,90538.0,90533.0,0.055214]
[1731819209452,0.416011,90538.0,90528.0,0.09976]
[1731819209453,0.055215,90533.0,90528.0,0.09976]
[1731819209720,0.055215,90533.0,90529.0,0.055217]
[1731819209924,0.13203722,90535.0,90530.0,0.055216]
[1731819210121,0.13203722,90535.0,90531.0,0.055215]
[1731819210421,0.13203722,90535.0,90528.0,0.044543]
[1731819210422,0.13203722,90535.0,90532.0,0.055215]
[1731819210722,0.055213,90536.0,90532.0,0.055215]
[1731819211024,0.055213,90536.0,90528.0,0.00013911]
[1731819211229,0.055215,90531.0,90528.0,0.00013911]
[1731819211518,0.13203722,90533.0,90528.0,0.00013911]
[1731819211723,0.13203722,90534.0,90528.0,0.00013911]
[1731819211918,0.13203722,90533.0,90528.0,0.00013911]
[1731819212113,0.18725122,90533.0,90528.0,0.00013911]
[1731819212619,0.13203722,90532.0,90528.0,0.00013911]
[1731819213012,0.055214,90533.0,90528.0,0.00013911]
[1731819213013,0.18725122,90533.0,90528.0,0.00013911]
[1731819213216,0.18725222,90532.0,90528.0,0.00013911]
[1731819213416,0.055215,90532.0,90528.0,0.00013911]
[1731819214319,0.18725222,90532.0,90528.0,0.00013911]
[1731819214522,0.055215,90532.0,90528.0,0.00013911]
[1731819216323,0.18725222,90532.0,90528.0,0.00013911]
[1731819217616,0.13203722,90532.0,90530.0,0.055216]
[1731819218127,0.13203722,90533.0,90530.0,0.055216]
[1731819218324,0.13203722,90534.0,90531.0,0.055215]
[1731819218518,0.13203722,90533.0,90531.0,0.055215]
[1731819219941,0.13203722,90534.0,90533.0,0.055214]
[1731819220232,0.13203722,90535.0,90533.0,0.055214]
[1731819221026,0.13203722,90535.0,90533.0,0.25274413]
[1731819221344,0.13203722,90534.0,90533.0,0.055214]
[1731819221631,0.13203722,90534.0,90533.0,0.19753013]
[1731819221837,0.36152,90538.0,90531.0,0.055215]
[1731819221838,0.3608,90538.0,90531.0,0.055215]
[1731819222139,0.3608,90538.0,90537.0,0.19760092]
[1731819224232,0.3608,90538.0,90530.0,0.26223976]
[1731819224445,0.13241015,90532.0,90530.0,0.26223976]
[1731819225239,0.13241015,90531.0,90529.0,0.26223976]
[1731819225544,0.13241015,90530.0,90528.0,0.31759587]
[1731819225746,0.13241015,90531.0,90529.0,0.055217]
[1731819226334,0.13241015,90531.0,90528.0,0.26237887]
[1731819226538,0.13241015,90529.0,90528.0,0.00013911]
[1731819227044,0.055216,90530.0,90528.0,0.00013911]
[1731819227241,0.18762946,90530.0,90528.0,0.00013911]
[1731819227447,0.055216,90530.0,90528.0,0.00013911]
[1731819227639,0.18762946,90530.0,90528.0,0.00013911]
[1731819228044,0.055216,90530.0,90528.0,0.00013911]
[1731819229240,0.18762946,90530.0,90528.0,0.00013911]
[1731819230028,0.055216,90530.0,90528.0,0.00013911]
[1731819230441,0.13241346,90530.0,90528.0,0.00013911]
[1731819231038,0.13241346,90530.0,90527.0,0.04735711]
[1731819232042,0.416018,90528.0,90525.0,0.26223976]
[1731819232240,0.416018,90528.0,90526.0,0.00011478]
[1731819232945,0.58110754,90528.0,90526.0,0.00011478]
[1731819233143,0.0537121,90527.0,90526.0,0.00011478]
[1731819233743,0.055227,90512.0,90511.0,0.20287272]
[1731819233947,0.54843563,90512.0,90507.0,0.19777272]
[1731819234447,0.416027,90512.0,90506.0,0.09843107]
[1731819234652,0.3608,90512.0,90508.0,0.055229]
[1731819234949,0.3608,90512.0,90511.0,0.00013583]
[1731819236134,0.49320863,90512.0,90511.0,0.00013583]
[1731819236543,0.3608,90512.0,90511.0,0.00013583]
[1731819237344,0.49320863,90512.0,90511.0,0.00013583]
[1731819237736,0.3608,90512.0,90511.0,0.00013583]
[1731819238660,0.3608,90512.0,90511.0,8.18e-06]
[1731819240050,0.51108311,90512.0,90511.0,8.18e-06]
[1731819242054,0.15028311,90512.0,90511.0,8.18e-06]
[1731819242247,0.51108311,90512.0,90511.0,8.18e-06]
[1731819243046,0.84252311,90512.0,90511.0,8.18e-06]
[1731819243343,0.84252311,90512.0,90499.0,0.0051]
[1731819243344,0.055234,90500.0,90499.0,0.0051]
[1731819243546,0.055234,90500.0,90489.0,0.0051]
[1731819243547,0.055237,90496.0,90489.0,0.0051]
[1731819243858,0.51108311,90500.0,90484.0,0.3608]
[1731819243859,0.055239,90492.0,90484.0,0.40665488]
[1731819244052,0.51108311,90500.0,90484.0,0.46125788]
[1731819244357,0.15028311,90492.0,90489.0,0.00012162]
[1731819244651,0.0642,90491.0,90489.0,0.00012162]
[1731819246064,0.0642,90491.0,90484.0,0.40657487]
[1731819246446,0.0642,90491.0,90484.0,0.40601487]
[1731819246971,0.0642,90491.0,90489.0,0.055241]
[1731819247255,0.3608,90500.0,90490.0,0.15028311]
[1731819247560,0.3608,90500.0,90489.0,0.00012326]
[1731819248255,0.05524,90491.0,90489.0,0.00012326]
[1731819248963,0.41604,90491.0,90489.0,0.00012326]
[1731819249456,0.3608,90491.0,90489.0,0.00012326]
[1731819249645,0.3608,90500.0,90489.0,0.00012326]
[1731819249846,0.3608,90500.0,90496.0,0.055237]
[1731819250157,0.055236,90497.0,90489.0,0.05536426]
[1731819250345,0.3608,90500.0,90489.0,0.05536426]
[1731819250346,0.055237,90495.0,90489.0,0.00012326]
[1731819250661,0.055239,90493.0,90489.0,0.00012326]
[1731819250851,0.416035,90500.0,90489.0,0.00012326]
[1731819251049,0.3608,90500.0,90494.0,0.055238]
[1731819251565,0.3608,90500.0,90489.0,0.00012326]
[1731819251755,0.055236,90497.0,90489.0,0.00012326]
[1731819252262,0.3608,90500.0,90492.0,0.055239]
[1731819252450,0.3608,90500.0,90494.0,0.055238]
[1731819252644,0.3608,90500.0,90493.0,0.0332]
[1731819252645,0.3608,90500.0,90495.0,0.0313]
[1731819252955,0.3608,90500.0,90496.0,0.0312]
[1731819253556,0.3608,90500.0,90496.0,0.086436]
[1731819253866,0.3608,90500.0,90498.0,0.055235]
[1731819255157,0.3608,90500.0,90496.0,0.0312]
[1731819255158,0.3659,90509.0,90506.0,0.05523]
[1731819255348,0.3608,90509.0,90506.0,0.05523]
[1731819255862,0.3608,90509.0,90498.0,0.055235]
[1731819256150,0.3608,90509.0,90497.0,0.0051]
[1731819256361,0.3608,90509.0,90502.0,0.055233]
[1731819256546,0.055229,90510.0,90502.0,0.055233]
[1731819256744,0.055229,90510.0,90497.0,0.20287272]
[1731819256745,0.055229,90510.0,90500.0,0.19777272]
[1731819256945,0.055224,90518.0,90506.0,0.05523]
[1731819257145,0.055226,90514.0,90507.0,0.05523]
[1731819258749,0.055228,90511.0,90502.0,0.0051]
[1731819258965,0.055228,90511.0,90500.0,0.055234]
[1731819259559,0.055228,90511.0,90501.0,0.055233]
[1731819259753,0.055228,90511.0,90503.0,0.055232]
[1731819260664,0.13209089,90517.0,90506.0,0.055231]
[1731819260858,0.13209089,90516.0,90506.0,0.055231]
[1731819261160,0.055224,90517.0,90506.0,0.055231]
[1731819261161,0.13209089,90515.0,90506.0,0.047231]
[1731819261350,0.13209089,90516.0,90506.0,0.047231]
[1731819261552,0.13209089,90514.0,90506.0,0.047231]
[1731819261761,0.13209089,90514.0,90502.0,0.0051]
[1731819262051,0.3836289,90519.0,90502.0,0.0051]
[1731819262052,0.416028,90511.0,90502.0,0.0051]
[1731819262358,0.416028,90511.0,90501.0,0.055234]
[1731819262359,0.3608,90511.0,90501.0,0.055234]
[1731819262546,0.3608,90511.0,90502.0,0.055233]
[1731819262752,0.49289089,90511.0,90502.0,0.055233]
[1731819263070,0.13209089,90508.0,90496.0,0.20287272]
[1731819263251,0.055233,90502.0,90496.0,0.0051]
[1731819263455,0.085534,90501.0,90495.0,0.19777272]
[1731819263765,0.085534,90501.0,90493.0,0.19777272]
[1731819264058,0.085534,90501.0,90494.0,0.19777272]
[1731819264451,0.085534,90501.0,90493.0,0.19777272]
[1731819264950,0.21762489,90501.0,90492.0,0.055239]
[1731819265565,0.13209089,90500.0,90492.0,0.055239]
[1731819265760,0.21762489,90501.0,90492.0,0.055239]
[1731819266165,0.21762489,90501.0,90491.0,0.19777272]
[1731819266166,0.16239089,90501.0,90491.0,0.19777272]
[1731819266365,0.16239089,90501.0,90489.0,0.00522326]
[1731819266366,0.16239089,90501.0,90497.0,0.055236]
[1731819266547,0.13209089,90500.0,90497.0,0.055236]
[1731819266759,0.0303,90501.0,90492.0,0.19777272]
[1731819266957,0.0303,90501.0,90492.0,0.25301172]
[1731819267150,0.16239089,90501.0,90492.0,0.055239]
[1731819267460,0.16239089,90501.0,90494.0,0.055238]
[1731819268054,0.0303,90501.0,90494.0,0.055238]
[1731819268256,0.055234,90500.0,90492.0,0.19777272]
[1731819268560,0.52319089,90501.0,90489.0,0.00522326]
[1731819268561,0.13209089,90497.0,90489.0,0.00522326]
[1731819268760,0.13209089,90497.0,90489.0,0.19789598]
[1731819268761,0.055237,90497.0,90489.0,0.19789598]
[1731819269055,0.3608,90490.0,90489.0,0.00012326]
[1731819272767,0.13209089,90491.0,90490.0,0.05524]
[1731819273073,0.3608,90492.0,90490.0,0.05524]
[1731819273372,0.3608,90492.0,90489.0,0.00012326]
[1731819274662,0.3608,90492.0,90489.0,0.19789598]
[1731819275765,0.3608,90492.0,90490.0,0.19777272]
[1731819276071,0.3608,90492.0,90490.0,0.18977272]
[1731819276263,0.3608,90492.0,90490.0,0.05524]
[1731819277385,0.3608,90492.0,90489.0,0.00012326]
[1731819277758,0.05524,90491.0,90489.0,0.00012326]
[1731819286278,0.3608,90492.0,90489.0,0.00012326]
[1731819286765,0.49289089,90492.0,90489.0,0.00012326]
[1731819287776,0.13209089,90491.0,90489.0,0.00012326]
[1731819288267,0.49289089,90492.0,90489.0,0.00012326]
[1731819288467,0.13209089,90491.0,90489.0,0.00012326]
[1731819289078,0.3608,90492.0,90489.0,0.05536426]
[1731819289979,0.3608,90492.0,90490.0,0.05524]
[1731819290180,0.3608,90492.0,90490.0,0.11944]
[1731819290369,0.13209089,90502.0,90491.0,0.3608]
[1731819290578,0.13719089,90504.0,90492.0,0.26223976]
[1731819290889,0.18722117,90509.0,90491.0,0.3608]
[1731819290890,0.13209089,90505.0,90503.0,0.055232]
[1731819291189,0.13209089,90505.0,90503.0,0.047232]
[1731819291864,0.17715756,90505.0,90503.0,0.047232]
[1731819292276,0.13209089,90504.0,90503.0,0.047232]
[1731819293070,0.18722117,90509.0,90503.0,0.047232]
[1731819293272,0.16511361,90508.0,90503.0,0.047232]
[1731819293783,0.13240985,90504.0,90503.0,0.047232]
[1731819293964,0.13240985,90504.0,90496.0,0.0051]
[1731819294165,0.51108311,90497.0,90495.0,0.055237]
[1731819294367,0.16492268,90496.0,90495.0,0.055237]
[1731819294881,0.16493085,90496.0,90495.0,0.055237]
[1731819295282,0.0325,90496.0,90495.0,0.055237]
[1731819295981,0.16493235,90496.0,90495.0,0.055237]
[1731819298281,0.20859261,90496.0,90495.0,0.055237]
[1731819298785,0.13243235,90498.0,90491.0,0.26223976]
[1731819298989,0.13243235,90501.0,90500.0,0.055234]
[1731819299367,0.13243235,90502.0,90500.0,0.055234]
[1731819304178,0.04382754,90507.0,90493.0,0.29483976]
[1731819304179,0.13243235,90503.0,90493.0,0.29483976]
[1731819304487,0.13243235,90503.0,90501.0,0.055233]
[1731819304971,0.13243235,90503.0,90495.0,0.3608]
[1731819305171,0.13243235,90504.0,90502.0,0.055233]
[1731819305373,0.04382754,90507.0,90504.0,0.055232]
[1731819305374,0.13243235,90505.0,90504.0,0.055232]
[1731819305584,0.13243235,90506.0,90504.0,0.055232]
[1731819305969,0.02210756,90509.0,90505.0,0.69228]
[1731819305970,0.13243235,90509.0,90505.0,0.69228]
[1731819306176,0.13243235,90514.0,90510.0,0.055228]
[1731819306385,0.13232493,90516.0,90515.0,0.055225]
[1731819306585,0.13232493,90519.0,90518.0,0.055223]
[1731819306877,0.13232021,90519.0,90518.0,0.055223]
[1731819307077,0.13232021,90526.0,90514.0,0.0323]
[1731819307381,0.3608,90527.0,90514.0,0.0323]
[1731819307382,0.3608,90527.0,90514.0,0.3931]
[1731819307774,0.3608,90527.0,90524.0,0.055219]
[1731819307977,0.3608,90527.0,90525.0,0.055219]
[1731819309787,0.3608,90527.0,90525.0,0.09898955]
[1731819310388,0.3608,90527.0,90525.0,0.055219]
[1731819311079,0.0051,90539.0,90527.0,0.055218]
[1731819311080,0.19263121,90539.0,90527.0,0.055218]
[1731819311284,0.09958665,90539.0,90537.0,0.055211]
[1731819311588,0.04437565,90539.0,90537.0,0.055211]
[1731819311789,0.00039,90542.0,90537.0,0.055211]
[1731819312490,0.04382938,90542.0,90537.0,0.055211]
[1731819312694,0.00039,90542.0,90537.0,0.055211]
[1731819312984,0.05521,90541.0,90537.0,0.055211]
[1731819313793,0.00039,90542.0,90526.0,0.0051]
[1731819313995,0.05521,90540.0,90533.0,0.055214]
[1731819314182,0.05521,90540.0,90526.0,0.0051]
[1731819314510,0.00039,90542.0,90535.0,0.055213]
[1731819315781,0.15028311,90537.0,90526.0,0.0051]
[1731819315982,0.15028311,90537.0,90519.0,0.0051]